fUST/lending_fUST_20250208
["ID","MTS","AMOUNT","RATE_DAILY","PERIOD"]
[352250737,1739017832768,-500.0,0.00010958,2]
[352250739,1739017832777,-500.0,0.00010958,2]
[352250740,1739017832786,-500.0,0.00010958,2]
[352250741,1739017832796,-500.0,0.00010958,2]
[352250742,1739017832805,-719.72,0.00010958,2]
[352250743,1739017832814,-500.0,0.00010958,2]
[352250744,1739017832823,-500.0,0.00010958,2]
[352250745,1739017832832,-500.0,0.00010958,2]
[352250746,1739017832841,-500.0,0.00010958,2]
[352250747,1739017832851,-500.0,0.00010958,2]
[352250748,1739017832859,-1164.69,0.00010958,2]
[352250749,1739017832869,-500.66134181,0.00010958,2]
[352250750,1739017832878,-500.0,0.00010958,2]
[352250751,1739017832887,-500.0,0.00010958,2]
[352250752,1739017832896,-506.9,0.00010958,2]
[352250753,1739017832905,-500.78138542,0.00010958,2]
[352250754,1739017832914,-500.0,0.00010958,2]
[352250755,1739017832923,-596.45,0.00010958,2]
[352250756,1739017832932,-500.0,0.00010958,2]
[352250757,1739017832941,-500.0,0.00010958,2]
[352250758,1739017832950,-500.0,0.00010958,2]
[352250759,1739017832959,-500.0,0.00010958,2]
[352250760,1739017832968,-500.0,0.00010958,2]
[352250761,1739017832977,-1256.34,0.00010958,2]
[352250762,1739017832986,-500.0,0.00010958,2]
[352250764,1739017832995,-500.0,0.00010958,2]
[352250765,1739017833004,-500.0,0.00010958,2]
[352250766,1739017833015,-500.0,0.00010958,2]
[352250767,1739017833024,-506.24240591,0.00010958,2]
[352250768,1739017833033,-500.0,0.00010958,2]
[352250769,1739017833043,-500.0,0.00010958,2]
[352250771,1739017833053,-618.62,0.00010958,2]
[352250773,1739017833062,-500.0,0.00010958,2]
[352250775,1739017833071,-560.03647683,0.00010958,2]
[352250776,1739017833080,-500.0,0.00010958,2]
[352250778,1739017833090,-487.38018915,0.00010958,2]
[352250780,1739017833100,-500.0,0.00010958,2]
[352250782,1739017833109,-500.0,0.00010958,2]
[352250784,1739017833118,-890.11,0.00010958,2]
[352250786,1739017833127,-500.0,0.00010958,2]
[352250788,1739017833137,-500.0,0.00010958,2]
[352250790,1739017833146,-500.0,0.00010958,2]
[352250793,1739017833162,-500.0,0.00010958,2]
[352250795,1739017833173,-500.0,0.00010958,2]
[352250797,1739017833182,-500.0,0.00010958,2]
[352250799,1739017833192,-500.0,0.00010958,2]
[352250801,1739017833201,-801.48,0.00010958,2]
[352250803,1739017833210,-312.37,0.00010958,2]
[352250804,1739017833220,-500.0,0.00010958,2]
[352250807,1739017833229,-500.0,0.00010958,2]
[352250809,1739017833239,-500.0,0.00010958,2]
[352250811,1739017833248,-500.0,0.00010958,2]
[352250813,1739017833257,-502.23891831,0.00010958,2]
[352250815,1739017833268,-500.0,0.00010958,2]
[352250817,1739017833277,-500.0,0.00010958,2]
[352250818,1739017833287,-500.0,0.00010958,2]
[352250820,1739017833296,-500.0,0.00010958,2]
[352250822,1739017833305,-500.0,0.00010958,2]
[352250824,1739017833314,-506.43348884,0.00010958,2]
[352250826,1739017833324,-500.0,0.00010958,2]
[352250828,1739017833333,-226.68405958,0.00010958,2]
[352250829,1739017833343,-500.0,0.00010958,2]
[352250831,1739017833352,-500.0,0.00010958,2]
[352250832,1739017833361,-503.07941548,0.00010958,2]
[352250833,1739017833370,-500.0,0.00010958,2]
[352250834,1739017833379,-500.0,0.00010958,2]
[352250835,1739017833389,-500.0,0.00010958,2]
[352250836,1739017833398,-500.0,0.00010958,2]
[352250837,1739017833407,-500.0,0.00010958,2]
[352250838,1739017833417,-500.0,0.00010958,2]
[352250839,1739017833426,-500.0,0.00010958,2]
[352250840,1739017833436,-500.0,0.00010958,2]
[352250841,1739017833446,-1129.76,0.00010958,2]
[352250842,1739017833455,-500.0,0.00010958,2]
[352250843,1739017833465,-500.0,0.00010958,2]
[352250844,1739017833475,-500.0,0.00010958,2]
[352250845,1739017833485,-500.0,0.00010958,2]
[352250846,1739017833495,-500.0,0.00010958,2]
[352250847,1739017833504,-61.43969979,0.00010958,2]
[352250848,1739017833524,-438.56030021,0.00010958,2]
[352250849,1739017833534,-500.0,0.00010958,2]
[352250850,1739017833544,-500.0,0.00010958,2]
[352250851,1739017833554,-500.0,0.00010958,2]
[352250852,1739017833564,-500.0,0.00010958,2]
[352250853,1739017833574,-502.68666017,0.00010958,2]
[352250854,1739017833583,-500.0,0.00010958,2]
[352250855,1739017833593,-403.95303962,0.00010958,2]
[352250856,1739017833610,-96.04696038,0.00010958,2]
[352250857,1739017833620,-500.0,0.00010958,2]
[352250858,1739017833630,-237.78001962,0.00010958,2]
[352250871,1739017837801,-262.21998038,0.00010958,2]
[352250872,1739017837810,-500.0,0.00010958,2]
[352250873,1739017837819,-243.74158017,0.00010958,2]
[352250874,1739017837828,-506.19487016,0.00010958,2]
[352250875,1739017837837,-432.0949103,0.00010958,2]
[352250876,1739017837846,-500.0,0.00010958,2]
[352250877,1739017837856,-1343.04,0.00010958,2]
[352250878,1739017837865,-500.0,0.00010958,2]
[352250879,1739017837875,-500.0,0.00010958,2]
[352250880,1739017837883,-500.0,0.00010958,2]
[352250881,1739017837892,-500.0,0.00010958,2]
[352250882,1739017837902,-500.0,0.00010958,2]
[352250883,1739017837911,-500.0,0.00010958,2]
[352250884,1739017837921,-500.0,0.00010958,2]
[352250885,1739017837931,-500.0,0.00010958,2]
[352250886,1739017837940,-389.98335779,0.00010958,2]
[352250887,1739017837950,-500.0,0.00010958,2]
[352250888,1739017837959,-1062.89,0.00010958,2]
[352250889,1739017837968,-500.0,0.00010958,2]
[352250890,1739017837978,-500.0,0.00010958,2]
[352250891,1739017837987,-500.0,0.00010958,2]
[352250892,1739017837999,-500.0,0.00010958,2]
[352250893,1739017838010,-500.0,0.00010958,2]
[352250894,1739017838021,-500.0,0.00010958,2]
[352250895,1739017838030,-500.0,0.00010958,2]
[352250896,1739017838040,-500.0,0.00010958,2]
[352250897,1739017838050,-500.0,0.00010958,2]
[352250898,1739017838060,-500.0,0.00010958,2]
[352250899,1739017838070,-500.0,0.00010958,2]
[352250900,1739017838081,-736.16,0.00010958,2]
[352250901,1739017838091,-500.0,0.00010958,2]
[352250902,1739017838100,-500.0,0.00010958,2]
[352250903,1739017838109,-500.0,0.00010958,2]
[352250904,1739017838120,-742.48,0.00010958,2]
[352250905,1739017838129,-500.0,0.00010958,2]
[352250906,1739017838138,-500.0,0.00010958,2]
[352250907,1739017838149,-500.0,0.00010958,2]
[352250908,1739017838159,-500.0,0.00010958,2]
[352250909,1739017838169,-500.0,0.00010958,2]
[352250910,1739017838178,-500.0,0.00010958,2]
[352250911,1739017838187,-500.0,0.00010958,2]
[352250912,1739017838197,-500.0,0.00010958,2]
[352250913,1739017838207,-1195.43,0.00010958,2]
[352250914,1739017838217,-500.0,0.00010958,2]
[352250915,1739017838228,-500.0,0.00010958,2]
[352250916,1739017838239,-500.0,0.00010958,2]
[352250917,1739017838248,-752.79,0.00010958,2]
[352250918,1739017838257,-1664.85,0.00010958,2]
[352250919,1739017838266,-500.0,0.00010958,2]
[352250920,1739017838276,-535.84,0.00010958,2]
[352250921,1739017838285,-500.0,0.00010958,2]
[352250922,1739017838295,-742.28,0.00010958,2]
[352250923,1739017838304,-500.0,0.00010958,2]
[352250924,1739017838314,-500.0,0.00010958,2]
[352250925,1739017838323,-500.0,0.00010958,2]
[352250926,1739017838333,-500.0,0.00010958,2]
[352250927,1739017838342,-1477.8,0.00010958,2]
[352250928,1739017838351,-789.89,0.00010958,2]
[352250929,1739017838361,-500.0,0.00010958,2]
[352250930,1739017838525,-500.0,0.00010958,2]
[352250931,1739017838536,-3040.25,0.00010958,2]
[352250932,1739017838546,-500.0,0.00010958,2]
[352250933,1739017838556,-500.0,0.00010958,2]
[352250934,1739017838566,-500.0,0.00010958,2]
[352250935,1739017838576,-500.0,0.00010958,2]
[352250936,1739017838585,-3881.11,0.00010958,2]
[352250937,1739017838594,-500.0,0.00010958,2]
[352250938,1739017838603,-1742.68,0.00010958,2]
[352250939,1739017838613,-500.0,0.00010958,2]
[352250940,1739017838622,-500.0,0.00010958,2]
[352250941,1739017838631,-500.0,0.00010958,2]
[352250942,1739017838640,-500.0,0.00010958,2]
[352250943,1739017838650,-500.0,0.00010958,2]
[352250944,1739017838659,-17493.96,0.00010958,2]
[352250945,1739017838669,-500.0,0.00010958,2]
[352250946,1739017838678,-500.0,0.00010958,2]
[352250947,1739017838687,-500.0,0.00010958,2]
[352250948,1739017838696,-500.0,0.00010958,2]
[352250949,1739017838705,-500.0,0.00010958,2]
[352250950,1739017838714,-1286.62,0.00010958,2]
[352250951,1739017838723,-500.0,0.00010958,2]
[352250952,1739017838732,-500.0,0.00010958,2]
[352250953,1739017838741,-500.0,0.00010958,2]
[352250954,1739017838751,-500.0,0.00010958,2]
[352250955,1739017838760,-500.0,0.00010958,2]
[352250956,1739017838769,-500.0,0.00010958,2]
[352250957,1739017838778,-500.0,0.00010958,2]
[352250958,1739017838787,-500.0,0.00010958,2]
[352250959,1739017838795,-1024.74,0.00010958,2]
[352250960,1739017838805,-500.0,0.00010958,2]
[352250961,1739017838814,-500.0,0.00010958,2]
[352250962,1739017838823,-500.0,0.00010958,2]
[352250963,1739017838832,-500.0,0.00010958,2]
[352250964,1739017838841,-500.0,0.00010958,2]
[352250965,1739017838851,-1951.84,0.00010958,2]
[352250966,1739017838860,-500.0,0.00010958,2]
[352250967,1739017838869,-5832.43,0.00010958,2]
[352250968,1739017838878,-500.0,0.00010958,2]
[352250969,1739017838887,-500.0,0.00010958,2]
[352250970,1739017838896,-500.0,0.00010958,2]
[352250971,1739017838906,-1544.06,0.00010958,2]
[352250972,1739017838915,-48916.37,0.00010958,2]
[352250973,1739017838924,-612.75,0.00010958,2]
[352250974,1739017838933,-4373.29,0.00010958,2]
[352250975,1739017838942,-559.35,0.00010958,2]
[352250976,1739017838951,-500.0,0.00010958,2]
[352250977,1739017838961,-2116.4,0.00010958,2]
[352250978,1739017838970,-500.0,0.00010958,2]
[352250979,1739017838979,-500.0,0.00010958,2]
[352250980,1739017838988,-2222.78,0.00010958,2]
[352250981,1739017839000,-664.27,0.00010958,2]
[352250982,1739017839016,-1238.14,0.00010958,2]
[352250983,1739017839027,-1538.17,0.00010958,2]
[352250984,1739017839036,-500.0,0.00010958,2]
[352250985,1739017839047,-500.0,0.00010958,2]
[352250986,1739017839056,-500.0,0.00010958,2]
[352250987,1739017839065,-500.0,0.00010958,2]
[352250988,1739017839074,-500.0,0.00010958,2]
[352250989,1739017839085,-500.0,0.00010958,2]
[352250990,1739017839095,-2142.8,0.00010958,2]
[352250991,1739017839106,-500.0,0.00010958,2]
[352250992,1739017839115,-1482.54,0.00010958,2]
[352250993,1739017839126,-500.0,0.00010958,2]
[352250994,1739017839137,-681.13,0.00010958,2]
[352250995,1739017839147,-564.79,0.00010958,2]
[352250996,1739017839157,-856.38,0.00010958,2]
[352250997,1739017839166,-2004.33,0.00010958,2]
[352250998,1739017839175,-500.0,0.00010958,2]
[352250999,1739017839183,-500.0,0.00010958,2]
[352251000,1739017839193,-500.0,0.00010958,2]
[352251001,1739017839202,-500.0,0.00010958,2]
[352251002,1739017839211,-500.0,0.00010958,2]
[352251003,1739017839221,-500.0,0.00010958,2]
[352251004,1739017839231,-500.0,0.00010958,2]
[352251005,1739017839241,-9384.36,0.00010958,2]
[352251006,1739017839252,-500.0,0.00010958,2]
[352251007,1739017839260,-500.0,0.00010958,2]
[352251008,1739017839269,-500.0,0.00010958,2]
[352251009,1739017839278,-500.0,0.00010958,2]
[352251010,1739017839287,-500.0,0.00010958,2]
[352251011,1739017839296,-500.0,0.00010958,2]
[352251012,1739017839305,-500.0,0.00010958,2]
[352251013,1739017839315,-3582.6,0.00010958,2]
[352251014,1739017839324,-289.81833978,0.00010958,2]
[352251015,1739017839334,-500.0,0.00010958,2]
[352251016,1739017839344,-500.0,0.00010958,2]
[352251017,1739017839353,-500.0,0.00010958,2]
[352251018,1739017839363,-500.0,0.00010958,2]
[352251019,1739017839372,-500.0,0.00010958,2]
[352251020,1739017839381,-3998.5,0.00010958,2]
[352251021,1739017839391,-896.88,0.00010958,2]
[352251022,1739017839401,-1674.8,0.00010958,2]
[352251023,1739017839411,-4034.27,0.00010958,2]
[352251024,1739017839420,-500.0,0.00010958,2]
[352251025,1739017839429,-500.0,0.00010958,2]
[352251026,1739017839438,-500.0,0.00010958,2]
[352251027,1739017839448,-4452.9,0.00010958,2]
[352251028,1739017839457,-15594.14,0.00010958,2]
[352251029,1739017839466,-820.56,0.00010958,2]
[352251030,1739017839475,-500.0,0.00010958,2]
[352251031,1739017839485,-474.45704257,0.00010958,2]
[352251032,1739017839493,-1320.74,0.00010958,2]
[352251033,1739017839503,-1676.27,0.00010958,2]
[352251034,1739017839512,-500.0,0.00010958,2]
[352251035,1739017839523,-500.0,0.00010958,2]
[352251037,1739017839533,-500.0,0.00010958,2]
[352251039,1739017839542,-1536.9,0.00010958,2]
[352251040,1739017839552,-1100.89,0.00010958,2]
[352251041,1739017839561,-1163.06,0.00010958,2]
[352251042,1739017839570,-500.0,0.00010958,2]
[352251043,1739017839579,-500.0,0.00010958,2]
[352251045,1739017839589,-651.17,0.00010958,2]
[352251047,1739017839598,-500.0,0.00010958,2]
[352251048,1739017839608,-500.0,0.00010958,2]
[352251049,1739017839617,-536.54576892,0.00010958,2]
[352251050,1739017839627,-636.37,0.00010958,2]
[352251051,1739017839636,-500.0,0.00010958,2]
[352251053,1739017839645,-500.0,0.00010958,2]
[352251055,1739017839654,-500.0,0.00010958,2]
[352251056,1739017839663,-500.0,0.00010958,2]
[352251057,1739017839672,-500.0,0.00010958,2]
[352251058,1739017839682,-500.0,0.00010958,2]
[352251059,1739017839691,-500.0,0.00010958,2]
[352251060,1739017839700,-500.0,0.00010958,2]
[352251061,1739017839710,-1113.41,0.00010958,2]
[352251062,1739017839719,-541.66,0.00010959,2]
[352251063,1739017839728,-451.38,0.00010959,2]
[352251064,1739017839737,-376.15,0.00010959,2]
[352251065,1739017839746,-313.46,0.00010959,2]
[352251066,1739017839755,-261.22,0.00010959,2]
[352251067,1739017839765,-3000.0,0.00010995,2]
[352251068,1739017839777,-154.498,0.0001108,2]
[352251069,1739017839786,-500.0,0.00011094,2]
[352251070,1739017839796,-500.0,0.00011094,2]
[352251071,1739017839805,-500.0,0.00011094,2]
[352251072,1739017839814,-500.0,0.00011094,2]
[352251073,1739017839823,-346.6,0.00011094,2]
[352251074,1739017839832,-278.99472816,0.00011095,2]
[352251075,1739017839841,-500.0,0.00011095,2]
[352251076,1739017839850,-500.0,0.00011095,2]
[352251077,1739017839860,-500.0,0.00011095,2]
[352251078,1739017839869,-500.0,0.00011095,2]
[352251079,1739017839878,-500.0,0.00011095,2]
[352251080,1739017839887,-500.0,0.00011095,2]
[352251081,1739017839898,-500.0,0.00011095,2]
[352251082,1739017839910,-500.0,0.00011095,2]
[352251083,1739017839919,-500.0,0.00011095,2]
[352251084,1739017839929,-500.0,0.00011095,2]
[352251085,1739017839938,-500.0,0.00011095,2]
[352251086,1739017839946,-500.0,0.00011095,2]
[352251087,1739017839955,-545.48,0.00011095,2]
[352251088,1739017839964,-500.0,0.00011095,2]
[352251089,1739017839973,-282.62964998,0.00011095,2]
[352251090,1739017839982,-500.0,0.00011095,2]
[352251091,1739017839991,-500.0,0.00011095,2]
[352251092,1739017840001,-622.9,0.00011095,2]
[352251093,1739017840012,-561.70437769,0.00011095,2]
[352251094,1739017840025,-500.0,0.00011095,2]
[352251095,1739017840034,-500.0,0.00011095,2]
[352251096,1739017840043,-425.7715578,0.00011095,2]
[352251097,1739017840054,-500.0,0.00011095,2]
[352251098,1739017840063,-500.0,0.00011095,2]
[352251099,1739017840072,-1172.82,0.00011095,2]
[352251100,1739017840082,-500.0,0.00011095,2]
[352251101,1739017840091,-1198.4,0.00011095,2]
[352251102,1739017840100,-500.0,0.00011095,2]
[352251103,1739017840109,-500.0,0.00011095,2]
[352251104,1739017840118,-500.0,0.00011095,2]
[352251105,1739017840128,-719.72,0.00011095,2]
[352251106,1739017840137,-500.0,0.00011095,2]
[352251107,1739017840146,-500.0,0.00011095,2]
[352251108,1739017840155,-500.0,0.00011095,2]
[352251109,1739017840166,-344.84731656,0.00011095,2]
[352251110,1739017840178,-1164.69,0.00011095,2]
[352251111,1739017840188,-500.0,0.00011095,2]
[352251112,1739017840199,-506.9,0.00011095,2]
[352251113,1739017840209,-500.0,0.00011095,2]
[352251114,1739017840219,-596.45,0.00011095,2]
[352251115,1739017840228,-176.13621671,0.00011095,2]
[352251116,1739017840237,-1256.34,0.00011095,2]
[352251117,1739017840246,-500.0,0.00011095,2]
[352251118,1739017840255,-500.0,0.00011095,2]
[352251119,1739017840264,-500.0,0.00011095,2]
[352251120,1739017840274,-618.62,0.00011095,2]
[352251121,1739017840283,-500.0,0.00011095,2]
[352251122,1739017840293,-500.0,0.00011095,2]
[352251123,1739017840302,-890.11,0.00011095,2]
[352251124,1739017840311,-500.0,0.00011095,2]
[352251125,1739017840320,-500.0,0.00011095,2]
[352251126,1739017840330,-599.56153822,0.00011095,2]
[352251127,1739017840339,-527.87,0.00011095,2]
[352251128,1739017840348,-513.98,0.00011095,2]
[352251129,1739017840357,-801.48,0.00011095,2]
[352251130,1739017840366,-500.0,0.00011095,2]
[352251131,1739017840374,-500.0,0.00011095,2]
[352251132,1739017840383,-500.0,0.00011095,2]
[352251133,1739017840392,-500.0,0.00011095,2]
[352251134,1739017840401,-500.0,0.00011095,2]
[352251135,1739017840410,-500.0,0.00011095,2]
[352251136,1739017840419,-500.0,0.00011095,2]
[352251137,1739017840429,-500.0,0.00011095,2]
[352251138,1739017840441,-1129.76,0.00011095,2]
[352251139,1739017840452,-500.0,0.00011095,2]
[352251140,1739017840461,-500.0,0.00011095,2]
[352251141,1739017840471,-500.0,0.00011095,2]
[352251142,1739017840480,-500.0,0.00011095,2]
[352251143,1739017840490,-500.0,0.00011095,2]
[352251144,1739017840499,-327.99996,0.00011095,2]
[352251145,1739017840508,-1343.04,0.00011095,2]
[352251146,1739017840517,-500.0,0.00011095,2]
[352251147,1739017840528,-500.0,0.00011095,2]
[352251148,1739017840538,-1062.89,0.00011095,2]
[352251149,1739017840547,-500.0,0.00011095,2]
[352251150,1739017840557,-500.0,0.00011095,2]
[352251151,1739017840567,-500.0,0.00011095,2]
[352251152,1739017840576,-500.0,0.00011095,2]
[352251153,1739017840585,-500.0,0.00011095,2]
[352251154,1739017840594,-736.16,0.00011095,2]
[352251155,1739017840603,-500.0,0.00011095,2]
[352251156,1739017840612,-742.48,0.00011095,2]
[352251157,1739017840621,-500.0,0.00011095,2]
[352251158,1739017840630,-500.0,0.00011095,2]
[352251159,1739017840640,-1195.43,0.00011095,2]
[352251160,1739017840649,-500.0,0.00011095,2]
[352251161,1739017840659,-500.0,0.00011095,2]
[352251162,1739017840669,-752.79,0.00011095,2]
[352251163,1739017840678,-1664.85,0.00011095,2]
[352251164,1739017840689,-500.0,0.00011095,2]
[352251165,1739017840698,-535.84,0.00011095,2]
[352251166,1739017840707,-500.0,0.00011095,2]
[352251167,1739017840716,-742.28,0.00011095,2]
[352251168,1739017840725,-500.0,0.00011095,2]
[352251169,1739017840735,-500.0,0.00011095,2]
[352251170,1739017840744,-500.0,0.00011095,2]
[352251171,1739017840753,-1477.8,0.00011095,2]
[352251172,1739017840763,-789.89,0.00011095,2]
[352251173,1739017840774,-500.0,0.00011095,2]
[352251174,1739017840783,-3040.25,0.00011095,2]
[352251175,1739017840792,-500.0,0.00011095,2]
[352251176,1739017840801,-500.0,0.00011095,2]
[352251177,1739017840810,-3881.11,0.00011095,2]
[352251178,1739017840819,-500.0,0.00011095,2]
[352251179,1739017840828,-1742.68,0.00011095,2]
[352251180,1739017840838,-500.0,0.00011095,2]
[352251181,1739017840847,-500.0,0.00011095,2]
[352251182,1739017840858,-500.0,0.00011095,2]
[352251183,1739017840868,-500.0,0.00011095,2]
[352251184,1739017840877,-500.0,0.00011095,2]
[352251185,1739017840886,-17493.96,0.00011095,2]
[352251186,1739017840895,-500.0,0.00011095,2]
[352251187,1739017840904,-1286.62,0.00011095,2]
[352251188,1739017840913,-1024.74,0.00011095,2]
[352251189,1739017840922,-500.0,0.00011095,2]
[352251190,1739017840931,-500.0,0.00011095,2]
[352251191,1739017840941,-500.0,0.00011095,2]
[352251192,1739017840950,-500.0,0.00011095,2]
[352251193,1739017840960,-500.0,0.00011095,2]
[352251194,1739017840970,-1951.84,0.00011095,2]
[352251195,1739017840979,-500.0,0.00011095,2]
[352251196,1739017840989,-5832.43,0.00011095,2]
[352251197,1739017840999,-500.0,0.00011095,2]
[352251198,1739017841013,-500.0,0.00011095,2]
[352251199,1739017841025,-500.0,0.00011095,2]
[352251200,1739017841034,-1544.06,0.00011095,2]
[352251201,1739017841043,-48916.37,0.00011095,2]
[352251202,1739017841058,-612.75,0.00011095,2]
[352251203,1739017841067,-4373.29,0.00011095,2]
[352251204,1739017841076,-559.35,0.00011095,2]
[352251205,1739017841087,-500.0,0.00011095,2]
[352251206,1739017841097,-2116.4,0.00011095,2]
[352251207,1739017841106,-500.0,0.00011095,2]
[352251208,1739017841115,-500.0,0.00011095,2]
[352251209,1739017841125,-2222.78,0.00011095,2]
[352251210,1739017841133,-664.27,0.00011095,2]
[352251211,1739017841142,-1238.14,0.00011095,2]
[352251212,1739017841151,-1538.17,0.00011095,2]
[352251214,1739017841161,-500.0,0.00011095,2]
[352251216,1739017841170,-500.0,0.00011095,2]
[352251217,1739017841179,-500.0,0.00011095,2]
[352251218,1739017841188,-500.0,0.00011095,2]
[352251219,1739017841198,-500.0,0.00011095,2]
[352251220,1739017841207,-500.0,0.00011095,2]
[352251221,1739017841216,-2142.8,0.00011095,2]
[352251222,1739017841226,-500.0,0.00011095,2]
[352251223,1739017841235,-1482.54,0.00011095,2]
[352251224,1739017841246,-500.0,0.00011095,2]
[352251225,1739017841260,-681.13,0.00011095,2]
[352251226,1739017841275,-564.79,0.00011095,2]
[352251227,1739017841290,-856.38,0.00011095,2]
[352251228,1739017841300,-2004.33,0.00011095,2]
[352251229,1739017841309,-500.0,0.00011095,2]
[352251230,1739017841318,-500.0,0.00011095,2]
[352251231,1739017841328,-500.0,0.00011095,2]
[352251232,1739017841337,-500.0,0.00011095,2]
[352251233,1739017841347,-500.0,0.00011095,2]
[352251234,1739017841356,-500.0,0.00011095,2]
[352251235,1739017841365,-9384.36,0.00011095,2]
[352251236,1739017841374,-500.0,0.00011095,2]
[352251237,1739017841383,-500.0,0.00011095,2]
[352251238,1739017841393,-500.0,0.00011095,2]
[352251239,1739017841402,-500.0,0.00011095,2]
[352251240,1739017841411,-500.0,0.00011095,2]
[352251241,1739017841420,-500.0,0.00011095,2]
[352251242,1739017841429,-3582.6,0.00011095,2]
[352251243,1739017841438,-500.0,0.00011095,2]
[352251244,1739017841447,-500.0,0.00011095,2]
[352251245,1739017841457,-500.0,0.00011095,2]
[352251246,1739017841466,-503.41528639,0.00011095,2]
[352251247,1739017841476,-3998.5,0.00011095,2]
[352251248,1739017841486,-896.88,0.00011095,2]
[352251249,1739017841495,-1674.8,0.00011095,2]
[352251250,1739017841505,-4034.27,0.00011095,2]
[352251251,1739017841514,-500.0,0.00011095,2]
[352251252,1739017841524,-500.0,0.00011095,2]
[352251253,1739017841533,-500.0,0.00011095,2]
[352251254,1739017841542,-4452.9,0.00011095,2]
[352251255,1739017841552,-15594.14,0.00011095,2]
[352251256,1739017841561,-820.56,0.00011095,2]
[352251257,1739017841570,-500.0,0.00011095,2]
[352251258,1739017841580,-1320.74,0.00011095,2]
[352251259,1739017841590,-1676.27,0.00011095,2]
[352251260,1739017841601,-500.0,0.00011095,2]
[352251261,1739017841610,-500.0,0.00011095,2]
[352251262,1739017841619,-500.0,0.00011095,2]
[352251263,1739017841628,-1536.9,0.00011095,2]
[352251264,1739017841638,-1100.89,0.00011095,2]
[352251265,1739017841647,-1163.06,0.00011095,2]
[352251266,1739017841656,-500.0,0.00011095,2]
[352251267,1739017841665,-518.24860747,0.00011095,2]
[352251268,1739017841674,-651.17,0.00011095,2]
[352251269,1739017841683,-500.0,0.00011095,2]
[352251270,1739017841692,-636.37,0.00011095,2]
[352251271,1739017841701,-500.0,0.00011095,2]
[352251272,1739017841710,-500.0,0.00011095,2]
[352251273,1739017841720,-500.0,0.00011095,2]
[352251274,1739017841730,-500.0,0.00011095,2]
[352251275,1739017841739,-500.0,0.00011095,2]
[352251276,1739017841748,-511.05316783,0.00011095,2]
[352251277,1739017841757,-500.0,0.00011095,2]
[352251278,1739017841766,-1113.41,0.00011095,2]
[352251279,1739017841776,-252.86593071,0.00011231,2]
[352251280,1739017841785,-500.0,0.00011231,2]
[352251281,1739017841794,-500.0,0.00011231,2]
[352251282,1739017841939,-349.81014481,0.00011231,2]
[352251283,1739017841950,-500.0,0.00011231,2]
[352251284,1739017841959,-508.09432037,0.00011232,2]
[352251285,1739017841969,-230.23409481,0.00011232,2]
[352251286,1739017841978,-500.0,0.00011232,2]
[352251287,1739017841987,-198.48339176,0.00011232,2]
[352251288,1739017841997,-500.0,0.00011232,2]